Cogmind - Beta 13 X1 @@@ ROGUE MODE // 2023.07.27 @ 20:19:48 Player: MTF Result: Destroyed by 3R-7PC(R) with Subdweller Beam Cannon Performance ------------- Evolutions (0) 0 Regions Visited (3) 600 Robots Destroyed (41) 205 Value Destroyed (1036) 1036 Prototype IDs (0) 0 Alien Tech Used (0) 0 Bonus (-899) -899 TOTAL SCORE: 942 Bonus ------- Friendly Fire -899 Cogmind --------- Core Integrity 0/250 Matter 300/300 Energy 250/250 System Corruption 0% Temperature Cool (9) Movement Walking (260) Ox2 Location -10/Subcaves Parts ------- > --- POWER (1) -------- Ion Engine > --- PROPULSION (2) --- Aluminum Leg Aluminum Leg > --- UTILITY (2) ------ High-capacity Storage Unit Light Armor Plating > --- WEAPON (2) ------- Grenade Launcher Ripper > --- INVENTORY (20) --- Improved Deuterium Engine Light Treads Disposable Heat Sink Disposable Heat Sink Disposable Heat Sink Disposable Heat Sink High-capacity Storage Unit High-capacity Matter Pod (87) YI-UF0's Bottomless Matter Pit Seismic Detector EM Pulse Gun Small Laser Subdweller Laser Subdweller Beam Cannon Light Assault Rifle EMP Blaster EMP Blaster Grenade Launcher Makeshift Spear Peak State ------------ > --- POWER ------------ Ion Engine > --- PROPULSION ------- Aluminum Leg Aluminum Leg > --- UTILITY ---------- Disposable Heat Sink High-capacity Storage Unit > --- WEAPON ----------- Grenade Launcher Ripper > --- INVENTORY -------- Ion Engine Improved Deuterium Engine Light Treads Aluminum Leg Aluminum Leg Aluminum Leg Disposable Heat Sink Disposable Heat Sink Disposable Heat Sink High-capacity Storage Unit High-capacity Matter Pod YI-UF0's Bottomless Matter Pit Seismic Detector EM Pulse Gun Small Laser Light Assault Rifle EMP Blaster EMP Blaster Grenade Launcher Grenade Launcher [Rating: 14] Favorites ----------- Power Ion Engine Engine Ion Engine Propulsion Aluminum Leg Treads Light Treads Leg Aluminum Leg Utility High-capacity Storage Unit Device Disposable Heat Sink Storage High-capacity Storage Unit Protection Light Armor Plating Weapon Grenade Launcher Energy Gun EM Pulse Gun Ballistic Gun Assault Rifle Launcher Grenade Launcher Slashing Weapon Ripper Build | -11 -10 -10 -10 ------- Run | Jun Mat Min Sub Slots Evolved . | . . . . Power . | . . . . Propulsion . | . . . . Utility . | . . . . Weapon . | . . . . Parts Attached 42 | 3 12 14 13 Power 6 | . . 5 1 Engine 6 | . . 5 1 Core . | . . . . Reactor . | . . . . Propulsion 7 | . 2 2 3 Treads 2 | . 2 . . Leg 5 | . . 2 3 Wheel . | . . . . Hover . | . . . . Flight . | . . . . Utility 5 | 2 2 . 1 Device 3 | 2 1 . . Storage 1 | . 1 . . Processor . | . . . . Hackware . | . . . . Protection 1 | . . . 1 Artifact . | . . . . Weapon 24 | 1 8 7 8 Energy Gun 2 | . . 2 . Energy Cannon . | . . . . Ballistic Gun 8 | 1 4 3 . Ballistic Cannon . | . . . . Launcher 9 | . 4 2 3 Special Weapon . | . . . . Impact Weapon . | . . . . Slashing Weapon 5 | . . . 5 Piercing Weapon . | . . . . Special Melee Weapon . | . . . . Unidentified Prototypes . | . . . . Parts Lost 9 | . . 4 5 Power 2 | . . 1 1 Propulsion 4 | . . 1 3 Utility . | . . . . Weapon 3 | . . 2 1 Highest Loss Streak 4 | . . 2 4 To Critical Strikes . | . . . . Average Slot Usage (%) 98 | . 100 99 97 Engine 13 | . 14 13 14 Treads 6 | . 24 10 . Leg 21 | . 3 17 27 Device 10 | . 14 14 8 Storage 14 | . 14 14 14 Protection 3 | . . . 5 Energy Gun 1 | . 1 3 . Ballistic Gun 12 | . 26 23 2 Launcher 11 | . . . 19 Slashing Weapon 1 | . . . 3 Naked Turns . | . . . . Heaviest Build 54 | 12 49 50 54 Greatest Support 40 | 20 40 40 20 Greatest Overweight (x) 4 | . 1 4 2 Average Overweight (x) 1 | . . 1 2 Largest Inventory Capacity 20 | 8 20 20 20 Average Capacity 19 | 8 11 20 20 Most Carried 20 | 6 20 20 20 Average Carried 17 | 6 10 19 17 Final Capacity 20 | 8 20 20 20 Final Carried 20 | 6 20 19 19 Class Distribution -------------------- 100% | Mutant Dominant Class ---------------- Mutant | -10/Materials Mutant | -10/Mines Mutant | -10/Subcaves Resources | -11 -10 -10 -10 ----------- Run | Jun Mat Min Sub Matter Collected 1389 | 257 98 724 310 Remotely . | . . . . Salvage Created 1384 | 168 129 1039 48 Parts 96 | 20 11 60 5 Haulers Intercepted . | . . . . Recyclers Shooed 1 | 1 . . . Parts Field Recycled . | . . . . Retrieved Matter . | . . . . Parts Self-Destructed 3 | . . . 3 Prevented . | . . . . Kills | -11 -10 -10 -10 ------- Run | Jun Mat Min Sub Combat Hostiles Destroyed 33 | . 3 25 5 Guns 25 | . 3 22 . AOE 8 | . . 3 5 Classes Destroyed 8 | 2 3 2 1 Worker 2 | . 1 1 . Builder 1 | . 1 . . Tunneler 5 | 5 . . . Recycler 1 | 1 . . . Swarmer 5 | . . 3 2 Grunt 23 | . 3 20 . Subdweller 3 | . . . 3 Assembled 2 | . . 2 . Best Kill Streak 4 | 4 3 4 2 Combat Bots Only 4 | . 3 4 2 Max Kills in Single Turn 2 | 1 2 2 2 Gunslinging . | . . . . Exploded 2 | . . 1 2 Melee . | . . . . Uniques/NPCs Destroyed 1 | . . 1 . YI-UF0 (-10/Mines) Combat | -11 -10 -10 -10 -------- Run | Jun Mat Min Sub Damage Taken 1358 | . 104 702 552 Core 271 | . . 124 147 Absorbed by Shields . | . . . . Core Remaining (%) 100 | 100 . . . Volleys Fired 111 | 10 10 79 12 Largest 2 | 2 2 2 2 Hottest 80 | 80 66 60 60 Shots Fired 195 | 20 19 141 15 Gun 172 | 20 16 136 . Cannon . | . . . . Launcher 23 | . 3 5 15 Special . | . . . . Kinetic 146 | 9 16 121 . Thermal 10 | 10 . . . Explosive 21 | . 1 5 15 Electromagnetic 18 | 1 2 15 . Robot Hit Streak 16 | 13 4 16 15 Robot Miss Streak 3 | 1 3 2 . Penetration Max . | . . . . Secondary Targets . | . . . . Shots Hit Robots 130 | 15 10 96 9 Core Hits 70 | 7 8 49 6 Critical Kills . | . . . . Critical Parts Destroyed 2 | . . 2 . Critical Strikes 2 | . . 2 . Destroy 2 | . . 2 . Melee Attacks 16 | . . . 16 Impact . | . . . . Slashing 16 | . . . 16 Piercing . | . . . . Sneak Attacks . | . . . . Combat Hostiles . | . . . . Follow-up Attacks . | . . . . Damage Inflicted 2649 | 174 223 1493 759 Guns 1491 | 174 111 1206 . Cannons . | . . . . Explosions 1118 | . 106 253 759 Melee . | . . . . Ramming 40 | . 6 34 . Kinetic 1216 | 52 111 1053 . Thermal 110 | 110 . . . Explosive 1118 | . 106 253 759 Electromagnetic 165 | 12 . 153 . Impact . | . . . . Slashing . | . . . . Piercing . | . . . . Highest Corruption . | . . . . Average Corruption . | . . . . Corruption Purged . | . . . . Corruption Blocked . | . . . . Overload Shots . | . . . . Overflow Damage 5 | . . . 5 Projectiles . | . . . . Explosions 5 | . . . 5 Melee . | . . . . Knockbacks 1 | . . 1 . Impact 1 | . . 1 . Kinetic . | . . . . Secondary . | . . . . Self-Inflicted Damage 74 | . 2 . 72 Shots 3 | . 1 . 2 Rammed 8 | . 2 6 . Targets Rammed 10 | . 2 8 . Kicked 2 | . . 2 . Crushed . | . . . . Highest Temperature 70 | 18 6 70 . Average Temperature 14 | 12 4 15 . Received Heat Transfer 515 | . 54 386 75 Siege Activations . | . . . . Robots Corrupted 1 | . . 1 . Combat Hostiles . | . . . . Parts Fried 1 | . . 1 . Impact Corruptions . | . . . . Robots Melted . | . . . . Combat Hostiles . | . . . . Parts Melted . | . . . . Heat Transferred 250 | 250 . . . Parts Sabotaged . | . . . . Parts Stolen . | . . . . Parts Stripped . | . . . . Power Chain Reactions . | . . . . Missiles Intercepted . | . . . . Alert | -11 -10 -10 -10 ------- Run | Jun Mat Min Sub Peak Influence 235 | 30 175 235 . Initial 19 | . 19 . . Average 95 | 13 99 98 . Maximum Alert Level 1 | . . 1 . Low Security (%) 99 | 100 100 99 . Level 1 . | . . . . Level 2 . | . . . . Level 3 . | . . . . Level 4 . | . . . . Level 5 . | . . . . High Security . | . . . . Max Security . | . . . . Squads Dispatched 2 | . 2 . . Investigation 1 | . 1 . . Extermination . | . . . . Reinforcement 1 | . 1 . . Assault . | . . . . Garrison . | . . . . Intercept . | . . . . Searches Triggered . | . . . . Construction Impeded . | . . . . Haulers Reinforced . | . . . . Active Scanning Responses . | . . . . Cargo Convoy Interrupts . | . . . . Stealth | -11 -10 -10 -10 --------- Run | Jun Mat Min Sub Distress Signals . | . . . . Communications Jammed . | . . . . Distress Signals . | . . . . Times Spotted 38 | . 5 26 7 Peak Tracking Total 4 | . 3 4 3 Tactical Retreats 2 | . . 2 . Traps | -11 -10 -10 -10 ------- Run | Jun Mat Min Sub Traps Triggered . | . . . . Indirectly . | . . . . Trap Hack Attempts . | . . . . Triggered . | . . . . Disarmed . | . . . . Reprogrammed . | . . . . Reused . | . . . . Traps Extracted . | . . . . Installed 1 | . . . 1 Triggered . | . . . . Machines | -11 -10 -10 -10 ---------- Run | Jun Mat Min Sub Machines Disabled 4 | . 4 . . Max in Single Turn 3 | . 3 . . Machines Repaired . | . . . . Machines Sabotaged . | . . . . Overloaded Fab Kills . | . . . . Hacking | -11 -10 -10 -10 --------- Run | Jun Mat Min Sub Machines Accessed 4 | . 3 1 . Terminals 3 | . 2 1 . Fabricators . | . . . . Repair Stations . | . . . . Recycling Units 1 | . 1 . . Scanalyzers . | . . . . Garrison Access . | . . . . Total Hacks 11 | . 8 3 . Successful 6 | . 5 1 . Failed 5 | . 3 2 . Catastrophic . | . . . . Database Lockouts . | . . . . Manual 7 | . 6 1 . Terminals 10 | . 7 3 . Fabricators . | . . . . Repair Stations . | . . . . Recycling Units 1 | . 1 . . Scanalyzers . | . . . . Garrison Access . | . . . . Terminal Hacks 5 | . 4 1 . Robot Analysis 2 | . 2 . . Locate Traps 1 | . 1 . . Zone Layout 2 | . 1 1 . Fabricator Hacks . | . . . . Repair Station Hacks . | . . . . Recycling Unit Hacks . | . . . . Scanalyzer . | . . . . Garrison Access Hacks . | . . . . Unauthorized Hacks 1 | . 1 . . Terminals . | . . . . Fabricators . | . . . . Repair Stations . | . . . . Recycling Units 1 | . 1 . . Tunnel 1 | . 1 . . Scanalyzers . | . . . . Garrison Access . | . . . . Data Cores Recovered . | . . . . Used . | . . . . Hacking Detections 3 | . 2 1 . Full Trace Events . | . . . . Feedback Events . | . . . . Feedback Blocked . | . . . . Robot Schematics Acquired . | . . . . Robots Built . | . . . . Authchips . | . . . . Time . | . . . . Total Robot Build Rating . | . . . . Part Schematics Acquired . | . . . . Parts Built . | . . . . Authchips . | . . . . Time . | . . . . Total Part Build Rating . | . . . . Parts Repaired . | . . . . Time . | . . . . Parts Recycled . | . . . . Recycled Matter . | . . . . Retrieved Matter . | . . . . Retrieved Components . | . . . . Parts Scanalyzed . | . . . . Part Schematics Acquired . | . . . . Parts Damaged . | . . . . Bothacking | -11 -10 -10 -10 ------------ Run | Jun Mat Min Sub Used RIF Installer . | . . . . Robots Hacked . | . . . . Non-combat . | . . . . Combat . | . . . . Robot Hacks Applied . | . . . . Relay Couplers Released . | . . . . Fabnet Peak Effective % . | . . . . Robots Rewired . | . . . . Allies Hacked . | . . . . Hacks Repelled . | . . . . Allies | -11 -10 -10 -10 -------- Run | Jun Mat Min Sub Total Allies . | . . . . Largest Group . | . . . . Highest-Rated Group . | . . . . Highest-Rated Ally . | . . . . Total Orders . | . . . . Ally Attacks . | . . . . Total Damage . | . . . . Kills . | . . . . Allies Corrupted . | . . . . Allies Melted . | . . . . Intel | -11 -10 -10 -10 ------- Run | Jun Mat Min Sub Robot Analysis Total 2 | . 2 . . Derelict Logs Recovered 3 | . . 2 1 Drone Launches . | . . . . Drone Recoveries . | . . . . Exploration | -11 -10 -10 -10 ------------- Run | Jun Mat Min Sub Turns Passed 5570 | 79 513 1976 3002 Spaces Moved 1771 | 37 249 517 968 Core . | . . . . Treads 350 | . 206 144 . Legs 1421 | 37 43 373 968 Wheels . | . . . . Hover . | . . . . Flight . | . . . . Fastest Speed 120 | 120 120 240 260 Average Speed 243 | 120 172 254 260 Slowest Speed 400 | 120 240 400 260 Overloaded Moves . | . . . . Propulsion Burnouts . | . . . . Robots Hopped . | . . . . Cave-ins Triggered . | . . . . Exploration Rate (%) 44 | 3 43 87 45 Regions Visited 3 Branch Regions 2 Pre-discovered Areas 3 | . 1 2 . Known Exits Taken . | . . . . Unknown Exits Taken 3 | 1 1 1 . Scrap Searched 4 | . . 1 3 Spaces Dug 21 | . . 11 10 Terrain Destroyed 117 | . 5 41 71 Melee 3 | . . . 3 Projectile . | . . . . AOE 114 | . 5 41 68 Terrain Rammed . | . . . . Walls Destroyed . | . . . . Machines Disabled . | . . . . Actions | -11 -10 -10 -10 --------- Run | Jun Mat Min Sub Total 2803 | 50 310 1030 1413 Wait 808 | . 19 397 392 Move 1768 | 36 248 516 968 Hop . | . . . . Pick Up 29 | . 16 7 6 Fast Attach 6 | 2 . 1 3 Attach 9 | . . 4 5 Detach 2 | . . 1 1 Swap 27 | 1 12 9 5 Drop 16 | 1 3 8 4 Fire 111 | 10 10 79 12 Melee 16 | . . . 16 Ram . | . . . . Kick 2 | . . 2 . Crush 8 | . 2 6 . Escape Stasis . | . . . . Rewire . | . . . . Trap 1 | . . . 1 Miscellaneous . | . . . . Route ------- -11/Junkyard -10/Materials (discovered 3 exits: [*Mat x2] / *Min) -10/Mines (discovered 3 exits: [*Mat x2] / [*Sub]) -10/Subcaves (discovered 1 exit: [*Mat]) History --------- Turn | Location | Event 12 | -11/Junkyard | Discovered new exit (range 3) 80 | -11/Junkyard | Entered Materials 232 | -10/Materials | Discovered new exit (range 10) 243 | -10/Materials | Discovered new exit (range 17) 306 | -10/Materials | Build established: Mutant 462 | -10/Materials | Discovered new exit (range 13) 593 | -10/Materials | Entered Mines 689 | -10/Mines | YI-UF0 nonchalantly dropped a Grenade Launcher on the ground 699 | -10/Mines | Destroyed YI-UF0 700 | -10/Mines | Found Corrupted Prototype Storage 799 | -10/Mines | Learned location of Zion (-7) 999 | -10/Mines | Excavation squad dispatched 999 | -10/Mines | A large section of the Mines collapsed 1249 | -10/Mines | Excavation squad dispatched 1499 | -10/Mines | Excavation squad dispatched 1749 | -10/Mines | Excavation squad dispatched 1815 | -10/Mines | Discovered new exit (range 10) 1937 | -10/Mines | Learned location of Recycling (-7) 1987 | -10/Mines | Discovered new exit (range 5) 2556 | -10/Mines | Discovered new exit (range 6) 2569 | -10/Mines | Entered Subcaves 2636 | -10/Subcaves | Shifting Twisted Machinery released Shrapnel Trap 2642 | -10/Subcaves | Shifting Twisted Machinery released Ripper 2938 | -10/Subcaves | A swath of the cavern ceiling suddenly collapsed 3139 | -10/Subcaves | Core integrity fell below 50% 3152 | -10/Subcaves | Core integrity fell below 20% 3186 | -10/Subcaves | Lost 4 parts (1p2n1w) 4379 | -10/Subcaves | Disturbed a concealed Subdweller 4482 | -10/Subcaves | Shifting Twisted Machinery released Shrapnel Trap 4508 | -10/Subcaves | Shifting Twisted Machinery released Battle Cannon 5401 | -10/Subcaves | Shifting Twisted Machinery released Mak. Armor Plating 5408 | -10/Subcaves | Shifting Twisted Machinery released Mak. Sword 5543 | -10/Subcaves | Discovered new exit (range 14) 5571 | -10/Subcaves | Destroyed by 3R-7PC(R) with Subdweller Beam Cannon Last Messages --------------- 04412_ Extracted 148 matter. 04412_ Acquired Hcp. Matter Pod. Shrapnel Trap falls loose from the Twisted Machinery. Battle Cannon falls loose from the Twisted Machinery. 04925_ W3-XMW(u) builds Twisted Machinery. 05384_ Searching scrap... 05384_ Found Piercing Trap. 05384_ Found 25 Matter. 05385_ Acquired 25 matter. Mak. Armor Plating falls loose from the Twisted Machinery. Mak. Sword falls loose from the Twisted Machinery. 05452_ Dropped Ripper. 05453_ Acquired Mak. Sword. 05454_ Dropped Mak. Sword. 05457_ Acquired Ripper. 05499_ Acquired Sub. Beam Cannon. 05503_ Acquired 38 matter. 05543_ Acquired 12 matter. 05543_ EXIT=FOUND 05569_ Acquired 10 matter. Map ----- +----------------------------------------------------+ | ###??????????????????????????????????????????????? | | #??????????????????????????????????????????????? | | ##?????????????????????????????????????????????? | | "#?????????????????????????????????????????????? | | # #?????????????????????????????????????????????? | | ##????????????????????????????????????????????? | | "## ##???????????????????????????????????????????? | | ## #???????????????????????????????????????????? | | " #???????????????????????????????????????????? | | #???????????????????????????????????????????? | | #???????????????????????????????????????????? | | #???????????????????????????????????????????? | | ##???????????????????????????????????????????? | | #????????????????????????????????????????????? | | #????????????????????????????????????????????? | | #????????????????????????????????????????????? | | #????????????????????????????????????????????? | | #????????????????????????????????????????????? | | #####????????????????????????????????????????????? | | ??????????????????????????#####??????????????????? | | ????????????????????????## ####???????????????? | | ????????????????????????# #???????????????? | | ??????????????????????### ##??????????????? | | ??????????????????????# ##?????????????? | | ?????????????????????## % #?? ######????????? | | ?????????????????????" @ ## ????????? | | ?????????????????????## % ????????? | | ??????????????????????## % ###???????????? | | ??????????????????????## % #?????????????? | | ??????????????????????# #?????????????? | | ??????????????????????## ## ######?????????????? | | ??????????????????????## ##?##??????????????????? | | ??????????????????????# #?????????????????????? | | ??????????????????????## ########??????????????? | | ??????????????????????# ## | ???????? | | ########??????????????### =%=< ??????? | | """!"" ####?????????????# ## * ??????? | | "" "" ##???????????## ##?? ????????? | | " ##/" #???????????#"" #????? ????????? | | #### " ##???????????# " "" #?????????????????? | | "#?## ###????????###### "#####?????????????????? | | ##??# ########### ### ##?????????????????????? | | #???# ## # # #??????????????????????? | | ##???# = % ######"????????????????? | | #????###### # ## "%"""""???????????????? | | ??????????######### %%&""""???????????????? | | ?????????????????# " = "" "??????????????? | | ?????????????????# ## %"* " ##??????????????? | | ?????????????????#################???????????????? | | ?????????????????????????????????????????????????? | +----------------------------------------------------+ Best States ------------- Heat Dissipation 25 Coolant Potential 50 Energy Generation 10 Energy Capacity 250 Matter Stores 300 Matter Capacity 300 Sight Range 16 Terrain Scan Range 16 Terrain Scan Density 10 Armor Coverage 150 Evasion (%) 55 Recoil Reduction 2 Item Schematics ----------------- None Robot Schematics ------------------ None Fabricated ------------ Nothing Alien Tech Used ----------------- None Achievements -------------- None Challenges ------------ None Game ------ Seed MachineGravitonProtection Manual? 0 Play Time 00:26:52 Cumulative 1403.3 hours Start 2023.07.27 @ 19:43:10 End 2023.07.27 @ 20:19:48 Sessions 1 Manual Loads 0 Difficulty Rogue Special Mode None Game No. 407 Rogue 407 Adventurer 0 Explorer 0 Win Type - Total 82 Types 13/18/16/3/1/2/25/2/2 Lore% 94 Gallery% 96 Achievement% 88 Wizard Run 0 Options --------- ASCII 0 Keyboard 0 Movement Numpad Keybinds 0 Fullscreen 2 Font 24/Smallcaps Map View 76x50 Tactical HUD 1 Map Filters NONE Filters NONE Steam 1 RUN: 8f9440e4-143e-48d4-8ce5-8bfddae9fb2a